fUST/lending_fUST_20250313
["ID","MTS","AMOUNT","RATE_DAILY","PERIOD"]
[356027959,1741806639042,-634.04,0.00021917,2]
[356027961,1741806639051,-1143.08,0.00021917,2]
[356027963,1741806639060,-1273.32,0.00021917,2]
[356027965,1741806639070,-500.0,0.00021917,2]
[356027967,1741806639079,-500.0,0.00021917,2]
[356027969,1741806639088,-500.0,0.00021917,2]
[356027971,1741806639098,-500.0,0.00021917,2]
[356027973,1741806639107,-500.0,0.00021917,2]
[356027975,1741806639117,-500.0,0.00021917,2]
[356027977,1741806639126,-500.0,0.00021917,2]
[356027979,1741806639136,-500.0,0.00021917,2]
[356027981,1741806639146,-315.45195104,0.00021917,2]
[356027983,1741806639156,-500.0,0.00021917,2]
[356027985,1741806639165,-507.56381159,0.00021917,2]
[356027988,1741806639175,-500.0,0.00021917,2]
[356027989,1741806639185,-500.0,0.00021917,2]
[356027990,1741806639194,-758.89,0.00021917,2]
[356027991,1741806639203,-500.0,0.00021917,2]
[356027992,1741806639212,-667.4214,0.00021959,2]
[356027993,1741806639222,-500.0,0.00021973,2]
[356027994,1741806639231,-500.0,0.00021973,2]
[356027995,1741806639241,-500.0,0.00021973,2]
[356027996,1741806639250,-500.0,0.00021973,2]
[356027997,1741806639260,-500.0,0.00021973,2]
[356027998,1741806639269,-500.0,0.00021973,2]
[356027999,1741806639278,-500.0,0.00021973,2]
[356028000,1741806639288,-291.23248099,0.00021973,2]
[356028001,1741806639297,-500.0,0.00021973,2]
[356028002,1741806639311,-190.53157683,0.00021973,2]
[356028003,1741806639324,-509.35314078,0.00021973,2]
[356028004,1741806639338,-500.0,0.00021973,2]
[356028007,1741806639352,-500.0,0.00021973,2]
[356028009,1741806639365,-500.0,0.00021973,2]
[356028011,1741806639375,-500.0,0.00021973,2]
[356028013,1741806639387,-500.0,0.00021973,2]
[356028016,1741806639400,-500.0,0.00021973,2]
[356028018,1741806639412,-500.0,0.00021973,2]
[356028020,1741806639424,-292.12321373,0.00021973,2]
[356028023,1741806639436,-500.0,0.00021973,2]
[356028025,1741806639449,-500.0,0.00021973,2]
[356028027,1741806639462,-500.0,0.00021973,2]
[356028030,1741806639473,-500.0,0.00021973,2]
[356028032,1741806639485,-500.0,0.00021973,2]
[356028034,1741806639498,-500.0,0.00021973,2]
[356028037,1741806639511,-6291.58032569,0.00022,2]
[356028039,1741806639523,-393.0,0.00022,2]
[356028041,1741806639533,-166.0,0.00022,2]
[356028043,1741806639545,-500.0,0.00022173,2]
[356028046,1741806639558,-500.0,0.00022173,2]
[356028048,1741806639569,-500.0,0.00022173,2]
[356028050,1741806639582,-500.0,0.00022173,2]
[356028053,1741806639594,-500.0,0.00022173,2]
[356028055,1741806639606,-500.0,0.00022173,2]
[356028057,1741806639617,-500.0,0.00022173,2]
[356028060,1741806639628,-500.0,0.00022173,2]
[356028062,1741806639638,-500.0,0.00022173,2]
[356028064,1741806639650,-500.0,0.00022173,2]
[356028066,1741806639662,-500.0,0.00022173,2]
[356028068,1741806639674,-500.0,0.00022173,2]
[356028071,1741806639686,-500.0,0.00022173,2]
[356028073,1741806639697,-500.0,0.00022173,2]
[356028075,1741806639710,-500.0,0.00022173,2]
[356028077,1741806639722,-500.0,0.00022173,2]
[356028080,1741806639735,-500.0,0.00022173,2]
[356028082,1741806639747,-500.0,0.00022173,2]
[356028085,1741806639760,-499.96647559,0.00022173,2]
[356028087,1741806639772,-500.0,0.00022191,2]
[356028089,1741806639785,-500.0,0.00022191,2]
[356028092,1741806639796,-500.0,0.00022191,2]
[356028094,1741806639806,-500.0,0.00022191,2]
[356028096,1741806639816,-500.0,0.00022191,2]
[356028098,1741806639827,-500.0,0.00022191,2]
[356028100,1741806639838,-500.0,0.00022191,2]
[356028102,1741806639850,-500.0,0.00022191,2]
[356028105,1741806639862,-500.0,0.00022191,2]
[356028107,1741806639874,-305.477752,0.00022191,2]
[356028109,1741806639885,-500.0,0.00022191,2]
[356028111,1741806639895,-500.0,0.00022191,2]
[356028114,1741806639905,-500.0,0.00022191,2]
[356028116,1741806639917,-500.0,0.00022191,2]
[356028118,1741806639929,-500.0,0.00022191,2]
[356028120,1741806639941,-500.0,0.00022191,2]
[356028122,1741806639952,-500.0,0.00022191,2]
[356028125,1741806639962,-500.0,0.00022191,2]
[356028127,1741806639972,-500.0,0.00022191,2]
[356028129,1741806639984,-495.89108934,0.00022191,2]
[356028131,1741806639995,-500.0,0.00022191,2]
[356028133,1741806640007,-500.0,0.00022191,2]
[356028136,1741806640018,-500.0,0.00022191,2]
[356028138,1741806640029,-318.04235762,0.00022191,2]
[356028140,1741806640040,-500.0,0.00022191,2]
[356028142,1741806640058,-500.0,0.00022191,2]
[356028145,1741806640069,-500.0,0.00022191,2]
[356028147,1741806640086,-500.0,0.00022191,2]
[356028150,1741806640097,-480.79818862,0.00022191,2]
[356028152,1741806640109,-500.0,0.00022191,2]
[356028154,1741806640121,-500.0,0.00022191,2]
[356028156,1741806640133,-500.0,0.00022191,2]
[356028159,1741806640144,-1775.34,0.00022191,2]
[356028161,1741806640155,-500.0,0.00022191,2]
[356028163,1741806640167,-500.0,0.00022191,2]
[356028166,1741806640178,-500.0,0.00022191,2]
[356028168,1741806640189,-500.0,0.00022191,2]
[356028170,1741806640199,-500.0,0.00022191,2]
[356028172,1741806640210,-500.0,0.00022191,2]
[356028174,1741806640221,-500.0,0.00022191,2]
[356028177,1741806640233,-500.0,0.00022191,2]
[356028179,1741806640243,-500.0,0.00022191,2]
[356028181,1741806640254,-587.93,0.00022191,2]
[356028183,1741806640265,-542.19946794,0.00022191,2]
[356028186,1741806640276,-500.0,0.00022191,2]
[356028188,1741806640287,-500.0,0.00022191,2]
[356028190,1741806640299,-500.0,0.00022191,2]
[356028193,1741806640314,-500.0,0.00022191,2]
[356028195,1741806640324,-500.0,0.00022191,2]
[356028197,1741806640336,-500.0,0.00022191,2]
[356028199,1741806640347,-500.0,0.00022191,2]
[356028201,1741806640358,-426.18127065,0.00022191,2]
[356028204,1741806640369,-500.0,0.00022191,2]
[356028206,1741806640380,-290.5669836,0.00022191,2]
[356028208,1741806640391,-500.0,0.00022191,2]
[356028210,1741806640402,-773.25,0.00022191,2]
[356028212,1741806640414,-500.0,0.00022191,2]
[356028215,1741806640425,-778.22,0.00022191,2]
[356028217,1741806640437,-556.77,0.00022191,2]
[356028219,1741806640447,-1109.43,0.00022191,2]
[356028221,1741806640458,-720.95,0.00022191,2]
[356028224,1741806640469,-500.0,0.00022191,2]
[356028226,1741806640480,-500.0,0.00022191,2]
[356028228,1741806640491,-500.0,0.00022191,2]
[356028230,1741806640502,-686.07,0.00022191,2]
[356028233,1741806640513,-500.0,0.00022191,2]
[356028235,1741806640524,-500.0,0.00022191,2]
[356028237,1741806640535,-500.0,0.00022191,2]
[356028239,1741806640546,-500.0,0.00022191,2]
[356028242,1741806640558,-500.0,0.00022191,2]
[356028244,1741806640569,-500.0,0.00022191,2]
[356028246,1741806640580,-274.44098617,0.00022191,2]
[356028248,1741806640591,-1424.68,0.00022191,2]
[356028250,1741806640602,-500.0,0.00022191,2]
[356028253,1741806640614,-500.0,0.00022191,2]
[356028255,1741806640625,-739.78,0.00022191,2]
[356028257,1741806640636,-500.0,0.00022191,2]
[356028259,1741806640648,-500.0,0.00022191,2]
[356028261,1741806640659,-500.0,0.00022191,2]
[356028263,1741806640670,-500.0,0.00022191,2]
[356028265,1741806640680,-500.0,0.00022191,2]
[356028267,1741806640691,-500.0,0.00022191,2]
[356028269,1741806640703,-500.0,0.00022191,2]
[356028271,1741806640713,-500.0,0.00022191,2]
[356028274,1741806640725,-500.0,0.00022191,2]
[356028276,1741806640736,-500.0,0.00022191,2]
[356028278,1741806640747,-607.18,0.00022191,2]
[356028280,1741806640758,-1545.26,0.00022191,2]
[356028282,1741806640771,-500.0,0.00022191,2]
[356028285,1741806640781,-500.0,0.00022191,2]
[356028287,1741806640793,-500.0,0.00022191,2]
[356028289,1741806640804,-500.0,0.00022191,2]
[356028291,1741806640815,-951.94,0.00022191,2]
[356028293,1741806640826,-500.0,0.00022191,2]
[356028295,1741806640838,-1434.82,0.00022191,2]
[356028298,1741806640849,-873.11,0.00022191,2]
[356028300,1741806640860,-500.0,0.00022191,2]
[356028302,1741806640870,-508.1,0.00022191,2]
[356028304,1741806640881,-500.0,0.00022191,2]
[356028306,1741806640892,-209.97664959,0.00022191,2]
[356028309,1741806640903,-1616.19,0.00022191,2]
[356028311,1741806640914,-500.0,0.00022191,2]
[356028313,1741806640925,-500.0,0.00022191,2]
[356028315,1741806640935,-500.0,0.00022191,2]
[356028317,1741806640947,-2626.31,0.00022191,2]
[356028319,1741806640958,-500.0,0.00022191,2]
[356028322,1741806640969,-500.0,0.00022191,2]
[356028323,1741806640979,-500.0,0.00022191,2]
[356028324,1741806640990,-500.0,0.00022191,2]
[356028325,1741806641000,-500.0,0.00022191,2]
[356028326,1741806641011,-567.63,0.00022191,2]
[356028327,1741806641022,-500.0,0.00022191,2]
[356028328,1741806641032,-817.05,0.00022191,2]
[356028329,1741806641043,-500.0,0.00022191,2]
[356028330,1741806641053,-911.71,0.00022191,2]
[356028331,1741806641064,-500.0,0.00022191,2]
[356028332,1741806641075,-500.0,0.00022191,2]
[356028333,1741806641085,-500.0,0.00022191,2]
[356028334,1741806641095,-520.04526823,0.00022191,2]
[356028335,1741806641106,-500.0,0.00022191,2]
[356028336,1741806641117,-500.0,0.00022191,2]
[356028337,1741806641127,-706.16,0.00022191,2]
[356028338,1741806641138,-500.0,0.00022191,2]
[356028339,1741806641148,-500.0,0.00022191,2]
[356028340,1741806641158,-500.0,0.00022191,2]
[356028341,1741806641169,-1115.91,0.00022191,2]
[356028342,1741806641180,-604.9,0.00022191,2]
[356028343,1741806641190,-843.78,0.00022191,2]
[356028344,1741806641200,-511.9,0.00022191,2]
[356028345,1741806641210,-500.0,0.00022191,2]
[356028346,1741806641221,-1490.23,0.00022191,2]
[356028347,1741806641232,-658.81,0.00022191,2]
[356028348,1741806641243,-500.0,0.00022191,2]
[356028349,1741806641253,-500.0,0.00022191,2]
[356028350,1741806641262,-4763.2,0.00022191,2]
[356028351,1741806641271,-500.0,0.00022191,2]
[356028352,1741806641280,-4458.4,0.00022191,2]
[356028353,1741806641289,-4642.18,0.00022191,2]
[356028354,1741806641298,-6858.36,0.00022191,2]
[356028355,1741806641312,-500.0,0.00022191,2]
[356028356,1741806641321,-500.0,0.00022191,2]
[356028357,1741806641331,-500.0,0.00022191,2]
[356028358,1741806641340,-500.0,0.00022191,2]
[356028359,1741806641350,-885.04,0.00022191,2]
[356028360,1741806641359,-235.98110283,0.00022191,2]
[356028361,1741806641369,-4055.89,0.00022191,2]
[356028362,1741806641378,-500.0,0.00022191,2]
[356028363,1741806641388,-656.82,0.00022191,2]
[356028367,1741806641714,-545.37,0.00022191,2]
[356028368,1741806641743,-500.0,0.00022191,2]
[356028369,1741806641761,-787.56,0.00022191,2]
[356028370,1741806641770,-590.27136488,0.00022191,2]
[356028371,1741806641780,-514.1262304,0.00022191,2]
[356028372,1741806641789,-909.55,0.00022191,2]
[356028373,1741806641799,-500.0,0.00022191,2]
[356028374,1741806641809,-536.39463067,0.00022191,2]
[356028375,1741806641818,-500.0,0.00022191,2]
[356028376,1741806641827,-500.0,0.00022191,2]
[356028377,1741806641837,-500.0,0.00022191,2]
[356028378,1741806641846,-500.0,0.00022191,2]
[356028379,1741806641855,-500.0,0.00022191,2]
[356028380,1741806641864,-3324.21,0.00022191,2]
[356028381,1741806641873,-500.0,0.00022191,2]
[356028382,1741806641883,-500.0,0.00022191,2]
[356028383,1741806641892,-500.0,0.00022191,2]
[356028384,1741806641901,-4836.29,0.00022191,2]
[356028385,1741806641910,-2750.3,0.00022191,2]
[356028386,1741806641919,-500.0,0.00022191,2]
[356028387,1741806641928,-1503.35,0.00022191,2]
[356028388,1741806641937,-803.0,0.00022191,2]
[356028389,1741806641947,-500.0,0.00022191,2]
[356028390,1741806641956,-626.32,0.00022191,2]
[356028391,1741806641966,-784.34,0.00022191,2]
[356028392,1741806641975,-639.26717078,0.00022191,2]
[356028393,1741806641985,-1527.59,0.00022191,2]
[356028394,1741806641994,-500.0,0.00022191,2]
[356028395,1741806642004,-699.95,0.00022191,2]
[356028396,1741806642014,-500.0,0.00022191,2]
[356028397,1741806642023,-500.0,0.00022191,5]
[356028398,1741806642032,-503.94,0.00022191,2]
[356028399,1741806642041,-2768.61,0.00022191,2]
[356028400,1741806642050,-1714.8,0.00022191,2]
[356028401,1741806642060,-500.0,0.00022191,2]
[356028402,1741806642069,-3002.94,0.00022191,2]
[356028403,1741806642078,-513.81,0.00022191,2]
[356028404,1741806642088,-551.63,0.00022191,2]
[356028405,1741806642097,-500.0,0.00022191,2]
[356028406,1741806642106,-646.8,0.00022191,2]
[356028407,1741806642115,-2017.18,0.00022191,2]
[356028408,1741806642124,-500.0,0.00022191,2]
[356028409,1741806642133,-420.53971474,0.00022191,2]
[356028410,1741806642143,-500.0,0.00022191,2]
[356028411,1741806642151,-2788.12,0.00022191,2]
[356028412,1741806642161,-500.0,0.00022191,2]
[356028414,1741806642170,-500.0,0.00022191,2]
[356028415,1741806642179,-46489.1,0.00022191,2]
[356028416,1741806642189,-500.0,0.00022191,2]
[356028418,1741806642198,-500.0,0.00022191,2]
[356028420,1741806642207,-742.97,0.00022191,2]
[356028422,1741806642216,-500.0,0.00022191,2]
[356028424,1741806642226,-1951.71,0.00022191,2]
[356028425,1741806642235,-955.93,0.00022191,2]
[356028427,1741806642243,-15294.13,0.00022191,2]
[356028429,1741806642252,-889.72,0.00022191,2]
[356028430,1741806642262,-500.0,0.00022191,2]
[356028433,1741806642271,-1286.47,0.00022191,2]
[356028435,1741806642280,-1025.54,0.00022191,2]
[356028437,1741806642289,-500.0,0.00022191,2]
[356028438,1741806642298,-6306.42,0.00022191,2]
[356028440,1741806642311,-2105.03,0.00022191,2]
[356028442,1741806642320,-1131.92,0.00022191,2]
[356028444,1741806642330,-500.0,0.00022191,2]
[356028446,1741806642339,-1085.35,0.00022191,2]
[356028449,1741806642349,-500.0,0.00022191,2]
[356028451,1741806642359,-500.0,0.00022191,2]
[356028453,1741806642368,-5460.01,0.00022191,2]
[356028455,1741806642377,-500.0,0.00022191,2]
[356028456,1741806642388,-1949.22,0.00022191,2]
[356028459,1741806642398,-511.02908351,0.00022191,2]
[356028461,1741806642407,-522.19714049,0.00022191,2]
[356028463,1741806642416,-500.0,0.00022191,2]
[356028465,1741806642425,-500.0,0.00022191,2]
[356028467,1741806642434,-500.0,0.00022191,2]
[356028469,1741806642443,-500.0,0.00022191,2]
[356028471,1741806642453,-1966.71,0.00022191,2]
[356028473,1741806642461,-500.0,0.00022191,2]
[356028475,1741806642470,-500.0,0.00022191,2]
[356028477,1741806642479,-515.47303822,0.00022191,2]
[356028479,1741806642488,-2432.04,0.00022191,2]
[356028481,1741806642497,-808.68,0.00022191,2]
[356028483,1741806642506,-672.73,0.00022191,2]
[356028485,1741806642517,-4250.61,0.00022191,2]
[356028487,1741806642526,-500.0,0.00022191,2]
[356028489,1741806642535,-500.0,0.00022191,2]
[356028491,1741806642544,-500.0,0.00022191,2]
[356028493,1741806642553,-500.0,0.00022191,2]
[356028495,1741806642562,-718.93,0.00022191,2]
[356028497,1741806642571,-500.0,0.00022191,2]
[356028499,1741806642581,-3357.1,0.00022191,2]
[356028501,1741806642590,-500.0,0.00022191,2]
[356028503,1741806642600,-1000.0,0.00022191,7]
[356028505,1741806642609,-956.86,0.00022191,2]
[356028507,1741806642618,-500.0,0.00022191,2]
[356028509,1741806642627,-929.5,0.00022191,2]
[356028511,1741806642636,-661.99,0.00022191,2]
[356028513,1741806642646,-6423.14,0.00022191,2]
[356028515,1741806642655,-573.85,0.00022191,2]
[356028517,1741806642664,-500.0,0.00022191,2]
[356028519,1741806642673,-3230.35,0.00022191,2]
[356028521,1741806642683,-500.0,0.00022191,2]
[356028523,1741806642691,-500.0,0.00022191,2]
[356028525,1741806642701,-1821.81,0.00022191,2]
[356028527,1741806642710,-500.0,0.00022191,2]
[356028529,1741806642718,-500.0,0.00022191,2]
[356028531,1741806642728,-753.31,0.00022191,2]
[356028533,1741806642737,-500.0,0.00022191,2]
[356028535,1741806642746,-1119.23,0.00022191,2]
[356028537,1741806642756,-1516.17,0.00022191,2]
[356028539,1741806642765,-2788.57,0.00022191,2]
[356028541,1741806642775,-500.0,0.00022191,2]
[356028543,1741806642784,-557.54,0.00022191,2]
[356028545,1741806642793,-634.04,0.00022191,2]
[356028547,1741806642803,-1143.08,0.00022191,2]
[356028548,1741806642812,-1273.32,0.00022191,2]
[356028550,1741806642822,-355.54030018,0.00022191,2]
[356028553,1741806642831,-500.0,0.00022191,2]
[356028556,1741806642841,-500.0,0.00022191,2]
[356028558,1741806642850,-500.0,0.00022191,2]
[356028560,1741806642859,-500.0,0.00022191,2]
[356028561,1741806642868,-500.0,0.00022191,2]
[356028563,1741806642877,-500.0,0.00022191,2]
[356028565,1741806642886,-500.0,0.00022191,2]
[356028567,1741806642895,-500.0,0.00022191,2]
[356028569,1741806642904,-496.16,0.00022191,2]
[356028571,1741806642914,-758.89,0.00022191,2]
[356028574,1741806642923,-393.0,0.00022192,2]
[356028575,1741806642932,-4459.79,0.0002224,2]
[356028576,1741806642941,-200.0,0.00022337,2]
[356028577,1741806642950,-15577.25547611,0.00022357,2]
[356028578,1741806642960,-416.66666667,0.00022357,2]
[356028579,1741806642969,-160.0,0.00022357,2]
[356028580,1741806642978,-160.0,0.00022357,2]
[356028581,1741806642988,-222000.0,0.00022365,2]
[356028582,1741806642997,-151.0,0.000224,5]
[356028583,1741806643006,-300.0,0.000224,10]
[356028584,1741806643015,-280.479,0.00022464,2]
[356028585,1741806643024,-500.0,0.00022465,2]
[356028586,1741806643034,-500.0,0.00022465,2]
[356028587,1741806643043,-500.0,0.00022465,2]
[356028588,1741806643052,-500.0,0.00022465,2]
[356028589,1741806643062,-500.0,0.00022465,2]
[356028590,1741806643072,-500.0,0.00022465,2]
[356028591,1741806643080,-500.0,0.00022465,2]
[356028593,1741806643090,-500.0,0.00022465,2]
[356028594,1741806643099,-500.0,0.00022465,2]
[356028595,1741806643108,-500.0,0.00022465,2]
[356028597,1741806643118,-500.0,0.00022465,2]
[356028599,1741806643129,-216.26032898,0.00022465,2]
[356028601,1741806643138,-500.0,0.00022465,2]
[356028604,1741806643148,-500.0,0.00022465,2]
[356028606,1741806643158,-500.0,0.00022465,2]
[356028608,1741806643167,-500.0,0.00022465,2]
[356028610,1741806643176,-500.0,0.00022465,2]
[356028612,1741806643185,-500.0,0.00022465,2]
[356028614,1741806643194,-500.0,0.00022465,2]
[356028616,1741806643203,-500.0,0.00022465,2]
[356028618,1741806643212,-500.0,0.00022465,2]
[356028620,1741806643221,-500.0,0.00022465,2]
[356028622,1741806643231,-500.0,0.00022465,2]
[356028624,1741806643240,-1775.34,0.00022465,2]
[356028626,1741806643249,-500.0,0.00022465,2]
[356028628,1741806643258,-500.0,0.00022465,2]
[356028629,1741806643267,-500.0,0.00022465,2]
[356028631,1741806643277,-500.0,0.00022465,2]
[356028633,1741806643287,-500.0,0.00022465,2]
[356028636,1741806643298,-500.0,0.00022465,2]
[356028637,1741806643314,-500.0,0.00022465,2]
[356028639,1741806643323,-500.0,0.00022465,2]
[356028642,1741806643333,-587.93,0.00022465,2]
[356028644,1741806643342,-500.0,0.00022465,2]
[356028646,1741806643353,-500.0,0.00022465,2]
[356028648,1741806643362,-160.04616876,0.00022465,2]
[356028649,1741806643372,-500.0,0.00022465,2]
[356028651,1741806643382,-500.0,0.00022465,2]
[356028653,1741806643391,-500.0,0.00022465,2]
[356028656,1741806643400,-500.0,0.00022465,2]
[356028658,1741806643410,-500.0,0.00022465,2]
[356028660,1741806643420,-773.25,0.00022465,2]
[356028662,1741806643429,-500.0,0.00022465,2]
[356028663,1741806643438,-778.22,0.00022465,2]
[356028666,1741806643448,-556.77,0.00022465,2]
[356028667,1741806643457,-1109.43,0.00022465,2]
[356028669,1741806643466,-720.95,0.00022465,2]
[356028672,1741806643475,-500.0,0.00022465,2]
[356028674,1741806643485,-500.0,0.00022465,2]
[356028679,1741806643494,-500.0,0.00022465,2]
[356028682,1741806643503,-686.07,0.00022465,2]
[356028686,1741806643512,-500.0,0.00022465,2]
[356028689,1741806643521,-500.0,0.00022465,2]
[356028692,1741806643531,-500.0,0.00022465,2]
[356028695,1741806643540,-500.0,0.00022465,2]
[356028698,1741806643549,-1424.68,0.00022465,2]
[356028701,1741806643559,-500.0,0.00022465,2]
[356028704,1741806643568,-360.55628035,0.00022465,2]
[356028708,1741806643577,-739.78,0.00022465,2]
[356028711,1741806643587,-500.0,0.00022465,2]
[356028714,1741806643597,-500.0,0.00022465,2]
[356028716,1741806643606,-519.13,0.00022465,2]
[356028718,1741806643616,-500.0,0.00022465,2]
[356028720,1741806643626,-500.0,0.00022465,2]
[356028722,1741806643635,-500.0,0.00022465,2]
[356028724,1741806643644,-500.0,0.00022465,2]
[356028726,1741806643653,-500.0,0.00022465,2]
[356028728,1741806643662,-500.0,0.00022465,2]
[356028730,1741806643671,-500.0,0.00022465,2]
[356028732,1741806643680,-607.18,0.00022465,2]
[356028734,1741806643690,-1545.26,0.00022465,2]
[356028736,1741806643699,-500.0,0.00022465,2]
[356028738,1741806643708,-500.0,0.00022465,2]
[356028740,1741806643718,-500.0,0.00022465,2]
[356028742,1741806643727,-500.0,0.00022465,2]
[356028744,1741806643736,-951.94,0.00022465,2]
[356028746,1741806643746,-500.0,0.00022465,2]
[356028748,1741806643755,-1434.82,0.00022465,2]
[356028750,1741806643764,-873.11,0.00022465,2]
[356028752,1741806643774,-500.0,0.00022465,2]
[356028754,1741806643784,-508.1,0.00022465,2]
[356028756,1741806643793,-500.0,0.00022465,2]
[356028758,1741806643803,-1616.19,0.00022465,2]
[356028760,1741806643813,-500.0,0.00022465,2]
[356028762,1741806643822,-500.0,0.00022465,2]
[356028764,1741806643832,-500.0,0.00022465,2]
[356028766,1741806643842,-2626.31,0.00022465,2]
[356028768,1741806643851,-500.0,0.00022465,2]
[356028770,1741806643861,-500.0,0.00022465,2]
[356028772,1741806643870,-500.0,0.00022465,2]
[356028774,1741806643880,-500.0,0.00022465,2]
[356028776,1741806643890,-567.63,0.00022465,2]
[356028778,1741806643899,-817.05,0.00022465,2]
[356028780,1741806643908,-911.71,0.00022465,2]
[356028782,1741806643918,-500.0,0.00022465,2]
[356028784,1741806643927,-500.0,0.00022465,2]
[356028787,1741806643937,-396.00320192,0.00022465,2]
[356028789,1741806643946,-500.0,0.00022465,2]
[356028791,1741806643956,-500.0,0.00022465,2]
[356028792,1741806643965,-706.16,0.00022465,2]
[356028795,1741806643975,-500.0,0.00022465,2]
[356028797,1741806643984,-500.0,0.00022465,2]
[356028799,1741806643994,-574.41602889,0.00022465,2]
[356028801,1741806644003,-1115.91,0.00022465,2]
[356028803,1741806644013,-604.9,0.00022465,2]
[356028805,1741806644023,-511.9,0.00022465,2]
[356028807,1741806644032,-843.78,0.00022465,2]
[356028809,1741806644042,-97.12888745,0.00022465,2]
[356028843,1741806644347,-500.0,0.00022191,2]
[356028845,1741806644358,-402.87111255,0.00022465,2]
[356028847,1741806644367,-1490.23,0.00022465,2]
[356028849,1741806644377,-342.29547235,0.00022465,2]
[356028869,1741806644544,-500.0,0.00021917,2]
[356028871,1741806644553,-138.9425372,0.00022465,2]
[356029045,1741806646310,-500.0,0.00021917,2]
[356029047,1741806646319,-177.57199045,0.00022465,2]
[356029049,1741806646329,-500.0,0.00022465,2]
[356029051,1741806646338,-500.0,0.00022465,2]
[356029053,1741806646347,-85.73185444,0.00022465,2]
[356029057,1741806646370,-4086.87,0.00021917,2]
[356029059,1741806646381,-414.26814556,0.00022465,2]
[356029060,1741806646390,-3825.88062846,0.00022465,2]
[356029066,1741806646430,-816.29937154,0.00022465,2]
[356029068,1741806646439,-6858.36,0.00022465,2]
[356029070,1741806646448,-500.0,0.00022465,2]
[356029072,1741806646457,-500.0,0.00022465,2]
[356029074,1741806646467,-500.0,0.00022465,2]
[356029076,1741806646476,-500.0,0.00022465,2]
[356029078,1741806646486,-885.04,0.00022465,2]
[356029080,1741806646495,-4055.89,0.00022465,2]
[356029082,1741806646505,-500.0,0.00022465,2]
[356029084,1741806646514,-656.82,0.00022465,2]
[356029086,1741806646523,-545.37,0.00022465,2]
[356029088,1741806646532,-500.0,0.00022465,2]
[356029090,1741806646542,-787.56,0.00022465,2]
[356029092,1741806646551,-909.55,0.00022465,2]
[356029094,1741806646560,-500.0,0.00022465,2]
[356029096,1741806646570,-500.0,0.00022465,2]
[356029098,1741806646579,-500.0,0.00022465,2]
[356029100,1741806646588,-500.0,0.00022465,2]
[356029102,1741806646598,-500.0,0.00022465,2]
[356029103,1741806646607,-500.0,0.00022465,2]
[356029105,1741806646617,-3324.21,0.00022465,2]
[356029108,1741806646626,-500.0,0.00022465,2]
[356029110,1741806646635,-500.0,0.00022465,2]
[356029112,1741806646644,-500.0,0.00022465,2]
[356029114,1741806646654,-4836.29,0.00022465,2]
[356029116,1741806646664,-2750.3,0.00022465,2]